[Event "Titled Tuesday Blitz February 21 Early 2023"]
[White "Demchenko, Anton"]
[Black "Golubka, Petro"]
[WhiteFideId "4160258"]
[BlackFideId "14114224"]
[WhiteElo "2623"]
[BlackElo "2371"]
[Result "0-1"]
[Round "08"]
[TimeControl "180+2"]
[Date "2023.02.21"]
[WhiteClock "0:00:05"]
[BlackClock "0:00:16"]

1. e4 {[%clk 0:02:54]}  c5 {[%clk 0:02:57]} 2. Nc3 {[%clk 0:02:54]}  Nc6 {[%clk 0:02:53]} 3. Bb5 {[%clk 0:02:53]}  Na5 {[%clk 0:02:53]} 4. a4 {[%clk 0:02:37]}  a6 {[%clk 0:02:54]} 5. Be2 {[%clk 0:02:38]}  e6 {[%clk 0:02:53]} 6. Nf3 {[%clk 0:02:34]}  b6 {[%clk 0:02:37]} 7. O-O {[%clk 0:02:31]}  Bb7 {[%clk 0:02:35]} 8. d4 {[%clk 0:02:22]}  cxd4 {[%clk 0:02:35]} 9. Qxd4 {[%clk 0:02:18]}  Nc6 {[%clk 0:02:34]} 10. Qe3 {[%clk 0:02:05]}  Bc5 {[%clk 0:02:33]} 11. Qf4 {[%clk 0:02:06]}  Nge7 {[%clk 0:02:23]} 12. Qg3 {[%clk 0:01:58]}  O-O {[%clk 0:02:13]} 13. h4 {[%clk 0:01:57]}  f5 {[%clk 0:02:10]} 14. Bh6 {[%clk 0:01:45]}  Ng6 {[%clk 0:01:57]} 15. h5 {[%clk 0:01:45]}  f4 {[%clk 0:01:48]} 16. Qg4 {[%clk 0:01:45]}  gxh6 {[%clk 0:01:42]} 17. hxg6 {[%clk 0:01:45]}  Qf6 {[%clk 0:01:36]} 18. Rad1 {[%clk 0:01:39]}  Rad8 {[%clk 0:01:34]} 19. e5 {[%clk 0:00:39]}  Nxe5 {[%clk 0:01:19]} 20. Nxe5 {[%clk 0:00:38]}  Qxe5 {[%clk 0:01:19]} 21. gxh7+ {[%clk 0:00:34]}  Kxh7 {[%clk 0:01:19]} 22. Bd3+ {[%clk 0:00:33]}  Kh8 {[%clk 0:01:19]} 23. Rfe1 {[%clk 0:00:26]}  Qg5 {[%clk 0:00:44]} 24. Qxg5 {[%clk 0:00:26]}  hxg5 {[%clk 0:00:45]} 25. Be4 {[%clk 0:00:27]}  d5 {[%clk 0:00:43]} 26. Bf3 {[%clk 0:00:27]}  Bc8 {[%clk 0:00:41]} 27. Re5 {[%clk 0:00:27]}  Be7 {[%clk 0:00:39]} 28. Bg4 {[%clk 0:00:21]}  Bf6 {[%clk 0:00:37]} 29. Re2 {[%clk 0:00:22]}  Rfe8 {[%clk 0:00:33]} 30. Rde1 {[%clk 0:00:16]}  d4 {[%clk 0:00:32]} 31. Ne4 {[%clk 0:00:15]}  Kg7 {[%clk 0:00:31]} 32. Rd2 {[%clk 0:00:12]}  Bb7 {[%clk 0:00:24]} 33. f3 {[%clk 0:00:11]}  e5 {[%clk 0:00:20]} 34. Nf2 {[%clk 0:00:09]}  a5 {[%clk 0:00:18]} 35. Bf5 {[%clk 0:00:08]}  Bc6 {[%clk 0:00:18]} 36. b3 {[%clk 0:00:08]}  Rh8 {[%clk 0:00:18]} 37. Be4 {[%clk 0:00:08]}  Bd7 {[%clk 0:00:17]} 38. Kf1 {[%clk 0:00:06]}  Rh6 {[%clk 0:00:16]} 39. Ke2 {[%clk 0:00:05]}  b5 {[%clk 0:00:16]} 40. axb5 {[%clk 0:00:04]}  Bxb5+ {[%clk 0:00:17]} 41. Bd3 {[%clk 0:00:05]}  Bc6 {[%clk 0:00:16]} 42. Ra1 {[%clk 0:00:05]}  Ra8 {[%clk 0:00:17]} 43. Rdd1 {[%clk 0:00:05]}  Be7 {[%clk 0:00:17]} 44. Be4 {[%clk 0:00:05]}  Bb5+ {[%clk 0:00:16]} 0-1


[Site "https://www.chess.com"]

[Event "Titled Tuesday Blitz February 21 Early 2023"]
[White "Lagno, Kateryna"]
[Black "Mitrabha, Guha"]
[WhiteFideId "14109336"]
[BlackFideId "5057000"]
[WhiteElo "2558"]
[BlackElo "2507"]
[Result "0-1"]
[Round "08"]
[TimeControl "180+2"]
[Date "2023.02.21"]
[WhiteClock "0:00:03"]
[BlackClock "0:00:27"]

1. e4 {[%clk 0:03:00]}  c6 {[%clk 0:02:56]} 2. d4 {[%clk 0:03:00]}  d5 {[%clk 0:02:57]} 3. e5 {[%clk 0:03:01]}  Bf5 {[%clk 0:02:56]} 4. Nd2 {[%clk 0:03:00]}  e6 {[%clk 0:02:56]} 5. Nb3 {[%clk 0:03:01]}  Nd7 {[%clk 0:02:56]} 6. Nf3 {[%clk 0:03:01]}  Ne7 {[%clk 0:02:56]} 7. Be2 {[%clk 0:03:01]}  Bg6 {[%clk 0:02:55]} 8. a4 {[%clk 0:02:59]}  a5 {[%clk 0:02:54]} 9. O-O {[%clk 0:02:57]}  Nf5 {[%clk 0:02:54]} 10. Bd2 {[%clk 0:02:45]}  Be7 {[%clk 0:02:51]} 11. Qe1 {[%clk 0:02:45]}  b6 {[%clk 0:02:52]} 12. c4 {[%clk 0:02:44]}  dxc4 {[%clk 0:02:47]} 13. Bxc4 {[%clk 0:02:45]}  O-O {[%clk 0:02:48]} 14. h3 {[%clk 0:02:43]}  Nb8 {[%clk 0:02:46]} 15. Rc1 {[%clk 0:02:32]}  Na6 {[%clk 0:02:46]} 16. g4 {[%clk 0:02:10]}  Nh6 {[%clk 0:02:45]} 17. Qe2 {[%clk 0:02:07]}  Nb4 {[%clk 0:02:45]} 18. Ne1 {[%clk 0:01:59]}  Kh8 {[%clk 0:02:34]} 19. Bxh6 {[%clk 0:01:52]}  gxh6 {[%clk 0:02:34]} 20. f4 {[%clk 0:01:53]}  b5 {[%clk 0:02:34]} 21. axb5 {[%clk 0:01:50]}  a4 {[%clk 0:02:34]} 22. Nd2 {[%clk 0:01:31]}  Qxd4+ {[%clk 0:02:34]} 23. Kh2 {[%clk 0:01:32]}  Rfd8 {[%clk 0:02:21]} 24. Nb1 {[%clk 0:01:10]}  cxb5 {[%clk 0:02:08]} 25. Bxb5 {[%clk 0:01:10]}  Na2 {[%clk 0:02:07]} 26. Rc7 {[%clk 0:00:57]}  Bxb1 {[%clk 0:01:48]} 27. Rxe7 {[%clk 0:00:57]}  Nc1 {[%clk 0:01:49]} 28. Qf2 {[%clk 0:00:53]}  Qb4 {[%clk 0:01:48]} 29. Qh4 {[%clk 0:00:47]}  Rd2+ {[%clk 0:01:40]} 30. Ng2 {[%clk 0:00:47]}  Rxg2+ {[%clk 0:01:39]} 31. Kxg2 {[%clk 0:00:47]}  Be4+ {[%clk 0:01:32]} 32. Kh2 {[%clk 0:00:45]}  Kg8 {[%clk 0:01:30]} 33. Be8 {[%clk 0:00:38]}  Nd3 {[%clk 0:01:09]} 34. Bxf7+ {[%clk 0:00:27]}  Kf8 {[%clk 0:01:09]} 35. Qxh6+ {[%clk 0:00:28]}  Kxe7 {[%clk 0:01:08]} 36. Qf6+ {[%clk 0:00:25]}  Kd7 {[%clk 0:01:08]} 37. Bxe6+ {[%clk 0:00:22]}  Kc7 {[%clk 0:01:08]} 38. Qf7+ {[%clk 0:00:16]}  Kb6 {[%clk 0:01:08]} 39. Kg3 {[%clk 0:00:14]}  Rf8 {[%clk 0:01:06]} 40. Qd7 {[%clk 0:00:12]}  Rb8 {[%clk 0:00:48]} 41. Kh4 {[%clk 0:00:11]}  Nc5 {[%clk 0:00:45]} 42. Qd6+ {[%clk 0:00:11]}  Ka5 {[%clk 0:00:45]} 43. Rc1 {[%clk 0:00:08]}  Na6 {[%clk 0:00:36]} 44. Qd7 {[%clk 0:00:06]}  Rb7 {[%clk 0:00:28]} 45. Qd8+ {[%clk 0:00:05]}  Qb6 {[%clk 0:00:29]} 46. Qd2+ {[%clk 0:00:05]}  Nb4 {[%clk 0:00:28]} 47. Bc8 {[%clk 0:00:04]}  Rc7 {[%clk 0:00:26]} 48. Rxc7 {[%clk 0:00:03]}  Qxc7 {[%clk 0:00:27]} 0-1


[Site "https://www.chess.com"]

[Event "Titled Tuesday Blitz February 21 Early 2023"]
[White "Bernadskiy, Vitaliy"]
[Black "Leiva, Gianmarco"]
[WhiteFideId "14100371"]
[BlackFideId "3804399"]
[WhiteElo "2592"]
[BlackElo "2392"]
[Result "1-0"]
[Round "08"]
[TimeControl "180+2"]
[Date "2023.02.21"]
[WhiteClock "0:00:15"]
[BlackClock "0:00:03"]

1. e4 {[%clk 0:03:00]}  c5 {[%clk 0:02:59]} 2. Nc3 {[%clk 0:02:59]}  Nc6 {[%clk 0:02:59]} 3. Nf3 {[%clk 0:02:58]}  e5 {[%clk 0:02:46]} 4. Bc4 {[%clk 0:02:57]}  Be7 {[%clk 0:02:47]} 5. d3 {[%clk 0:02:57]}  d6 {[%clk 0:02:47]} 6. a3 {[%clk 0:02:56]}  Nf6 {[%clk 0:02:36]} 7. Rb1 {[%clk 0:02:55]}  O-O {[%clk 0:02:33]} 8. b4 {[%clk 0:02:54]}  b6 {[%clk 0:02:31]} 9. Bg5 {[%clk 0:02:46]}  Nd4 {[%clk 0:02:26]} 10. h3 {[%clk 0:02:41]}  Be6 {[%clk 0:02:22]} 11. Bxf6 {[%clk 0:02:40]}  Bxf6 {[%clk 0:02:21]} 12. b5 {[%clk 0:02:29]}  Kh8 {[%clk 0:02:07]} 13. O-O {[%clk 0:02:28]}  Bd7 {[%clk 0:02:03]} 14. Nd5 {[%clk 0:02:19]}  Bg5 {[%clk 0:02:00]} 15. Nxd4 {[%clk 0:02:03]}  cxd4 {[%clk 0:01:54]} 16. f4 {[%clk 0:02:00]}  Bh6 {[%clk 0:01:55]} 17. f5 {[%clk 0:01:59]}  Qh4 {[%clk 0:01:50]} 18. Kh2 {[%clk 0:01:57]}  f6 {[%clk 0:01:33]} 19. g3 {[%clk 0:01:54]}  Qg5 {[%clk 0:01:34]} 20. h4 {[%clk 0:01:53]}  Qd2+ {[%clk 0:01:34]} 21. Qxd2 {[%clk 0:01:53]}  Bxd2 {[%clk 0:01:34]} 22. g4 {[%clk 0:01:47]}  Bh6 {[%clk 0:00:30]} 23. Kg2 {[%clk 0:01:36]}  Be8 {[%clk 0:00:27]} 24. Nc7 {[%clk 0:01:34]}  Rc8 {[%clk 0:00:26]} 25. Ne6 {[%clk 0:01:34]}  Bf7 {[%clk 0:00:20]} 26. Nxf8 {[%clk 0:00:39]}  Bxc4 {[%clk 0:00:19]} 27. dxc4 {[%clk 0:00:36]}  Rxf8 {[%clk 0:00:20]} 28. Rb4 {[%clk 0:00:35]}  Bd2 {[%clk 0:00:19]} 29. Ra4 {[%clk 0:00:35]}  Ba5 {[%clk 0:00:19]} 30. Kf3 {[%clk 0:00:34]}  Rf7 {[%clk 0:00:17]} 31. Ke2 {[%clk 0:00:34]}  g6 {[%clk 0:00:14]} 32. Kd3 {[%clk 0:00:32]}  Kg7 {[%clk 0:00:13]} 33. g5 {[%clk 0:00:32]}  Rf8 {[%clk 0:00:10]} 34. c5 {[%clk 0:00:28]}  dxc5 {[%clk 0:00:09]} 35. Kc4 {[%clk 0:00:28]}  gxf5 {[%clk 0:00:07]} 36. Rxf5 {[%clk 0:00:23]}  fxg5 {[%clk 0:00:03]} 37. Rxg5+ {[%clk 0:00:23]}  Kh6 {[%clk 0:00:03]} 38. Rxe5 {[%clk 0:00:22]}  Rf3 {[%clk 0:00:03]} 39. Kd5 {[%clk 0:00:19]}  Rc3 {[%clk 0:00:04]} 40. Rc4 {[%clk 0:00:18]}  Rxa3 {[%clk 0:00:04]} 41. Re7 {[%clk 0:00:17]}  d3 {[%clk 0:00:02]} 42. cxd3 {[%clk 0:00:16]}  Rxd3+ {[%clk 0:00:03]} 43. Kc6 {[%clk 0:00:17]}  Rd4 {[%clk 0:00:01]} 44. Rxd4 {[%clk 0:00:16]}  cxd4 {[%clk 0:00:02]} 45. Rd7 {[%clk 0:00:15]}  Bc3 {[%clk 0:00:03]} 46. e5 {[%clk 0:00:15]}  Kh5 {[%clk 0:00:03]} 47. e6 {[%clk 0:00:16]}  Bb4 {[%clk 0:00:03]} 48. Rd5+ {[%clk 0:00:15]}  Kg6 {[%clk 0:00:03]} 49. Rxd4 {[%clk 0:00:15]}  Be7 {[%clk 0:00:04]} 50. Rf4 {[%clk 0:00:16]}  Bf6 {[%clk 0:00:03]} 51. Kd7 {[%clk 0:00:15]} 1-0


[Site "https://www.chess.com"]

[Event "Titled Tuesday Blitz February 21 Early 2023"]
[White "Gokerkan, Cem Kaan"]
[Black "Hasangatin, Ramil"]
[WhiteFideId "6336760"]
[BlackFideId "4122160"]
[WhiteElo "2500"]
[BlackElo "2457"]
[Result "1/2-1/2"]
[Round "08"]
[TimeControl "180+2"]
[Date "2023.02.21"]
[WhiteClock "0:00:19"]
[BlackClock "0:00:10"]

1. e4 {[%clk 0:03:00]}  d5 {[%clk 0:03:00]} 2. exd5 {[%clk 0:03:00]}  Qxd5 {[%clk 0:03:01]} 3. Nc3 {[%clk 0:03:01]}  Qd6 {[%clk 0:03:01]} 4. d4 {[%clk 0:03:01]}  Nf6 {[%clk 0:03:02]} 5. Nf3 {[%clk 0:03:02]}  c6 {[%clk 0:03:02]} 6. Ne5 {[%clk 0:02:52]}  Nbd7 {[%clk 0:03:02]} 7. Nc4 {[%clk 0:02:52]}  Qc7 {[%clk 0:03:02]} 8. a4 {[%clk 0:02:51]}  a5 {[%clk 0:02:58]} 9. Qf3 {[%clk 0:02:51]}  Nb6 {[%clk 0:02:59]} 10. Bf4 {[%clk 0:02:41]}  Qd8 {[%clk 0:02:58]} 11. Ne5 {[%clk 0:02:30]}  Be6 {[%clk 0:02:57]} 12. Rd1 {[%clk 0:02:25]}  Nbd5 {[%clk 0:02:56]} 13. Bg5 {[%clk 0:02:13]}  g6 {[%clk 0:02:54]} 14. Bc4 {[%clk 0:01:55]}  Bg7 {[%clk 0:02:52]} 15. O-O {[%clk 0:01:55]}  O-O {[%clk 0:02:52]} 16. Rfe1 {[%clk 0:01:53]}  Re8 {[%clk 0:02:50]} 17. h3 {[%clk 0:01:45]}  Qb6 {[%clk 0:02:43]} 18. Bb3 {[%clk 0:01:38]}  Rad8 {[%clk 0:02:43]} 19. Nc4 {[%clk 0:01:27]}  Qc7 {[%clk 0:02:41]} 20. Ne2 {[%clk 0:01:21]}  b5 {[%clk 0:02:20]} 21. Ne5 {[%clk 0:01:12]}  Nd7 {[%clk 0:01:59]} 22. axb5 {[%clk 0:00:55]}  Nxe5 {[%clk 0:01:47]} 23. dxe5 {[%clk 0:00:55]}  Qxe5 {[%clk 0:01:47]} 24. Bh4 {[%clk 0:00:31]}  Qxb2 {[%clk 0:00:59]} 25. bxc6 {[%clk 0:00:31]}  Nc7 {[%clk 0:00:54]} 26. Rxd8 {[%clk 0:00:27]}  Rxd8 {[%clk 0:00:54]} 27. Bxe7 {[%clk 0:00:28]}  Re8 {[%clk 0:00:53]} 28. Bd6 {[%clk 0:00:26]}  Bxb3 {[%clk 0:00:52]} 29. Qxb3 {[%clk 0:00:20]}  Rc8 {[%clk 0:00:40]} 30. Qxb2 {[%clk 0:00:19]}  Bxb2 {[%clk 0:00:40]} 31. Rb1 {[%clk 0:00:19]}  Ne8 {[%clk 0:00:24]} 32. Rxb2 {[%clk 0:00:14]}  Nxd6 {[%clk 0:00:24]} 33. Nd4 {[%clk 0:00:15]}  a4 {[%clk 0:00:17]} 34. Ra2 {[%clk 0:00:13]}  Ra8 {[%clk 0:00:16]} 35. c7 {[%clk 0:00:12]}  Kf8 {[%clk 0:00:14]} 36. c4 {[%clk 0:00:07]}  Ke7 {[%clk 0:00:13]} 37. c5 {[%clk 0:00:08]}  Nc8 {[%clk 0:00:13]} 38. Nb5 {[%clk 0:00:07]}  Kd7 {[%clk 0:00:13]} 39. g4 {[%clk 0:00:06]}  Kc6 {[%clk 0:00:11]} 40. Nc3 {[%clk 0:00:06]}  a3 {[%clk 0:00:10]} 41. Nb1 {[%clk 0:00:05]}  Kxc7 {[%clk 0:00:09]} 42. Kg2 {[%clk 0:00:06]}  Kc6 {[%clk 0:00:09]} 43. Kf3 {[%clk 0:00:05]}  Kxc5 {[%clk 0:00:09]} 44. Rxa3 {[%clk 0:00:06]}  Rb8 {[%clk 0:00:08]} 45. Nd2 {[%clk 0:00:05]}  Nd6 {[%clk 0:00:08]} 46. Kf4 {[%clk 0:00:04]}  f6 {[%clk 0:00:08]} 47. Rd3 {[%clk 0:00:05]}  g5+ {[%clk 0:00:08]} 48. Kg3 {[%clk 0:00:04]}  Rb4 {[%clk 0:00:08]} 49. h4 {[%clk 0:00:03]}  h6 {[%clk 0:00:08]} 50. hxg5 {[%clk 0:00:03]}  hxg5 {[%clk 0:00:09]} 51. Rf3 {[%clk 0:00:03]}  Ne8 {[%clk 0:00:08]} 52. Re3 {[%clk 0:00:03]}  Nc7 {[%clk 0:00:07]} 53. Re7 {[%clk 0:00:02]}  Kd6 {[%clk 0:00:06]} 54. Rf7 {[%clk 0:00:02]}  Nd5 {[%clk 0:00:07]} 55. f3 {[%clk 0:00:02]}  Ke6 {[%clk 0:00:06]} 56. Rf8 {[%clk 0:00:02]}  Nf4 {[%clk 0:00:06]} 57. Ne4 {[%clk 0:00:02]}  Rb2 {[%clk 0:00:04]} 58. Rxf6+ {[%clk 0:00:02]}  Ke7 {[%clk 0:00:05]} 59. Rxf4 {[%clk 0:00:01]}  gxf4+ {[%clk 0:00:04]} 60. Kxf4 {[%clk 0:00:02]}  Kf7 {[%clk 0:00:04]} 61. Ng5+ {[%clk 0:00:03]}  Kg6 {[%clk 0:00:04]} 62. Ne4 {[%clk 0:00:03]}  Ra2 {[%clk 0:00:05]} 63. Kg3 {[%clk 0:00:04]}  Ra3 {[%clk 0:00:05]} 64. Nf2 {[%clk 0:00:05]}  Ra2 {[%clk 0:00:05]} 65. Nh3 {[%clk 0:00:06]}  Ra1 {[%clk 0:00:06]} 66. Nf4+ {[%clk 0:00:07]}  Kg5 {[%clk 0:00:06]} 67. Ne6+ {[%clk 0:00:07]}  Kg6 {[%clk 0:00:07]} 68. Nd4 {[%clk 0:00:08]}  Rd1 {[%clk 0:00:06]} 69. Nc2 {[%clk 0:00:09]}  Rg1+ {[%clk 0:00:06]} 70. Kf2 {[%clk 0:00:09]}  Rb1 {[%clk 0:00:07]} 71. Ne3 {[%clk 0:00:10]}  Kg5 {[%clk 0:00:06]} 72. Ng2 {[%clk 0:00:08]}  Rb3 {[%clk 0:00:06]} 73. Kg3 {[%clk 0:00:09]}  Ra3 {[%clk 0:00:07]} 74. Nf4 {[%clk 0:00:09]}  Rb3 {[%clk 0:00:07]} 75. Ne6+ {[%clk 0:00:09]}  Kf6 {[%clk 0:00:07]} 76. Nc5 {[%clk 0:00:10]}  Ra3 {[%clk 0:00:07]} 77. Kf4 {[%clk 0:00:10]}  Kg6 {[%clk 0:00:07]} 78. Ne4 {[%clk 0:00:08]}  Ra4 {[%clk 0:00:07]} 79. Kg3 {[%clk 0:00:08]}  Ra3 {[%clk 0:00:07]} 80. Nd2 {[%clk 0:00:08]}  Ra2 {[%clk 0:00:08]} 81. Nc4 {[%clk 0:00:09]}  Rc2 {[%clk 0:00:08]} 82. Ne5+ {[%clk 0:00:09]}  Kf6 {[%clk 0:00:07]} 83. Nd3 {[%clk 0:00:10]}  Rd2 {[%clk 0:00:07]} 84. Nc5 {[%clk 0:00:10]}  Ra2 {[%clk 0:00:06]} 85. Kf4 {[%clk 0:00:09]}  Rc2 {[%clk 0:00:06]} 86. g5+ {[%clk 0:00:09]}  Kg6 {[%clk 0:00:05]} 87. Ne4 {[%clk 0:00:10]}  Rc4 {[%clk 0:00:05]} 88. Kg4 {[%clk 0:00:10]}  Ra4 {[%clk 0:00:05]} 89. Kf4 {[%clk 0:00:11]}  Rb4 {[%clk 0:00:05]} 90. Ke5 {[%clk 0:00:11]}  Rb5+ {[%clk 0:00:05]} 91. Ke6 {[%clk 0:00:08]}  Rb4 {[%clk 0:00:05]} 92. Kd5 {[%clk 0:00:07]}  Rb5+ {[%clk 0:00:05]} 93. Kd4 {[%clk 0:00:07]}  Rb4+ {[%clk 0:00:05]} 94. Ke3 {[%clk 0:00:07]}  Rb3+ {[%clk 0:00:05]} 95. Kf4 {[%clk 0:00:07]}  Rb4 {[%clk 0:00:05]} 96. Kg3 {[%clk 0:00:07]}  Rxe4 {[%clk 0:00:04]} 97. fxe4 {[%clk 0:00:06]}  Kxg5 {[%clk 0:00:04]} 98. Kf3 {[%clk 0:00:07]}  Kf6 {[%clk 0:00:04]} 99. Kf4 {[%clk 0:00:08]}  Ke6 {[%clk 0:00:04]} 100. Ke3 {[%clk 0:00:08]}  Ke5 {[%clk 0:00:04]} 101. Kd3 {[%clk 0:00:09]}  Ke6 {[%clk 0:00:05]} 102. Kd4 {[%clk 0:00:10]}  Kd6 {[%clk 0:00:05]} 103. Kc4 {[%clk 0:00:11]}  Ke5 {[%clk 0:00:05]} 104. Kd3 {[%clk 0:00:12]}  Ke6 {[%clk 0:00:06]} 105. Kd4 {[%clk 0:00:13]}  Kd6 {[%clk 0:00:06]} 106. e5+ {[%clk 0:00:14]}  Ke6 {[%clk 0:00:07]} 107. Ke4 {[%clk 0:00:15]}  Ke7 {[%clk 0:00:07]} 108. Kd5 {[%clk 0:00:15]}  Kd7 {[%clk 0:00:07]} 109. Kd4 {[%clk 0:00:16]}  Ke6 {[%clk 0:00:08]} 110. Ke4 {[%clk 0:00:17]}  Ke7 {[%clk 0:00:08]} 111. Kd5 {[%clk 0:00:18]}  Kd7 {[%clk 0:00:09]} 112. Kd4 {[%clk 0:00:19]}  Ke6 {[%clk 0:00:10]} 1/2-1/2


[Site "https://www.chess.com"]

[Event "Titled Tuesday Blitz February 21 Early 2023"]
[White "Vakhlamov, Igor L."]
[Black "Iskusnyh, Sergei"]
[WhiteFideId "24126748"]
[BlackFideId "4120027"]
[WhiteElo "2413"]
[BlackElo "2440"]
[Result "1-0"]
[Round "08"]
[TimeControl "180+2"]
[Date "2023.02.21"]
[WhiteClock "0:00:20"]
[BlackClock "0:00:01"]

1. e4 {[%clk 0:02:58]}  e6 {[%clk 0:02:59]} 2. d4 {[%clk 0:02:58]}  d5 {[%clk 0:02:59]} 3. Nc3 {[%clk 0:02:59]}  Nf6 {[%clk 0:02:59]} 4. Bd3 {[%clk 0:02:58]}  c5 {[%clk 0:02:33]} 5. Nf3 {[%clk 0:02:58]}  cxd4 {[%clk 0:02:25]} 6. Nxd4 {[%clk 0:02:56]}  Nc6 {[%clk 0:02:25]} 7. Bb5 {[%clk 0:02:56]}  Bd7 {[%clk 0:02:22]} 8. exd5 {[%clk 0:02:55]}  exd5 {[%clk 0:02:06]} 9. O-O {[%clk 0:02:55]}  Be7 {[%clk 0:02:05]} 10. Be2 {[%clk 0:02:54]}  O-O {[%clk 0:02:04]} 11. Bf4 {[%clk 0:02:49]}  Rc8 {[%clk 0:01:31]} 12. Ndb5 {[%clk 0:02:25]}  Be6 {[%clk 0:01:27]} 13. Be3 {[%clk 0:02:14]}  a6 {[%clk 0:01:09]} 14. Nd4 {[%clk 0:02:13]}  Bd6 {[%clk 0:01:06]} 15. Re1 {[%clk 0:02:09]}  Qc7 {[%clk 0:01:01]} 16. h3 {[%clk 0:02:09]}  Bh2+ {[%clk 0:00:49]} 17. Kh1 {[%clk 0:02:09]}  Be5 {[%clk 0:00:50]} 18. Bf3 {[%clk 0:02:06]}  Rcd8 {[%clk 0:00:43]} 19. Nxc6 {[%clk 0:01:49]}  bxc6 {[%clk 0:00:41]} 20. Bd4 {[%clk 0:01:49]}  Bxd4 {[%clk 0:00:37]} 21. Qxd4 {[%clk 0:01:50]}  c5 {[%clk 0:00:36]} 22. Qh4 {[%clk 0:01:50]}  d4 {[%clk 0:00:36]} 23. Ne4 {[%clk 0:01:49]}  Nxe4 {[%clk 0:00:36]} 24. Bxe4 {[%clk 0:01:50]}  g6 {[%clk 0:00:36]} 25. b3 {[%clk 0:01:51]}  Rfe8 {[%clk 0:00:35]} 26. Kg1 {[%clk 0:01:48]}  a5 {[%clk 0:00:29]} 27. Bd3 {[%clk 0:01:41]}  Bd5 {[%clk 0:00:27]} 28. Qg5 {[%clk 0:01:39]}  Qd6 {[%clk 0:00:26]} 29. h4 {[%clk 0:01:37]}  Kg7 {[%clk 0:00:20]} 30. h5 {[%clk 0:01:37]}  h6 {[%clk 0:00:20]} 31. Qg4 {[%clk 0:01:33]}  Be6 {[%clk 0:00:19]} 32. Qf3 {[%clk 0:01:31]}  Bd5 {[%clk 0:00:15]} 33. Qg4 {[%clk 0:01:29]}  Be6 {[%clk 0:00:15]} 34. Qh4 {[%clk 0:01:13]}  g5 {[%clk 0:00:15]} 35. Qe4 {[%clk 0:01:12]}  f5 {[%clk 0:00:10]} 36. Qf3 {[%clk 0:01:00]}  Kf6 {[%clk 0:00:10]} 37. Re2 {[%clk 0:00:45]}  g4 {[%clk 0:00:10]} 38. Qb7 {[%clk 0:00:46]}  Bd5 {[%clk 0:00:10]} 39. Qh7 {[%clk 0:00:43]}  Rxe2 {[%clk 0:00:06]} 40. Qxf5+ {[%clk 0:00:33]}  Ke7 {[%clk 0:00:04]} 41. Bxe2 {[%clk 0:00:31]}  Qe6 {[%clk 0:00:03]} 42. Bxg4 {[%clk 0:00:28]}  Qxf5 {[%clk 0:00:02]} 43. Bxf5 {[%clk 0:00:29]}  Kf6 {[%clk 0:00:03]} 44. Bg6 {[%clk 0:00:26]}  a4 {[%clk 0:00:04]} 45. Re1 {[%clk 0:00:26]}  Ra8 {[%clk 0:00:04]} 46. f4 {[%clk 0:00:24]}  c4 {[%clk 0:00:04]} 47. bxc4 {[%clk 0:00:23]}  Bxc4 {[%clk 0:00:04]} 48. a3 {[%clk 0:00:24]}  Rb8 {[%clk 0:00:04]} 49. Re4 {[%clk 0:00:21]}  Rb2 {[%clk 0:00:03]} 50. Rxd4 {[%clk 0:00:20]}  Be2 {[%clk 0:00:03]} 51. Rxa4 {[%clk 0:00:20]}  Rb1+ {[%clk 0:00:03]} 52. Kf2 {[%clk 0:00:20]}  Bb5 {[%clk 0:00:01]} 53. Rb4 {[%clk 0:00:21]}  Rg1 {[%clk 0:00:01]} 54. Kxg1 {[%clk 0:00:20]} 1-0


[Site "https://www.chess.com"]

[Event "Titled Tuesday Blitz February 21 Early 2023"]
[White "Shuvalova, Polina"]
[Black "Boros, Denes"]
[WhiteFideId "24171760"]
[BlackFideId "722340"]
[WhiteElo "2484"]
[BlackElo "2406"]
[Result "0-1"]
[Round "08"]
[TimeControl "180+2"]
[Date "2023.02.21"]
[WhiteClock "0:00:09"]
[BlackClock "0:01:14"]

1. d4 {[%clk 0:02:59]}  Nf6 {[%clk 0:03:00]} 2. c4 {[%clk 0:02:59]}  c5 {[%clk 0:02:59]} 3. d5 {[%clk 0:02:59]}  a6 {[%clk 0:03:00]} 4. Nc3 {[%clk 0:02:55]}  b5 {[%clk 0:03:00]} 5. a3 {[%clk 0:02:34]}  e6 {[%clk 0:02:55]} 6. Nf3 {[%clk 0:02:25]}  Bb7 {[%clk 0:02:52]} 7. dxe6 {[%clk 0:01:53]}  fxe6 {[%clk 0:02:53]} 8. e3 {[%clk 0:01:53]}  bxc4 {[%clk 0:02:46]} 9. Bxc4 {[%clk 0:01:52]}  d5 {[%clk 0:02:45]} 10. Be2 {[%clk 0:01:44]}  Bd6 {[%clk 0:02:43]} 11. O-O {[%clk 0:01:45]}  O-O {[%clk 0:02:42]} 12. b3 {[%clk 0:01:34]}  Nbd7 {[%clk 0:02:38]} 13. Bb2 {[%clk 0:01:33]}  Qe7 {[%clk 0:02:31]} 14. Qc2 {[%clk 0:01:26]}  Ng4 {[%clk 0:02:30]} 15. h3 {[%clk 0:01:24]}  Nge5 {[%clk 0:02:12]} 16. Nxe5 {[%clk 0:01:18]}  Nxe5 {[%clk 0:02:10]} 17. f4 {[%clk 0:01:13]}  Ng6 {[%clk 0:02:07]} 18. Bf3 {[%clk 0:01:10]}  Nh4 {[%clk 0:02:04]} 19. Bg4 {[%clk 0:01:07]}  Rad8 {[%clk 0:01:44]} 20. Rae1 {[%clk 0:01:03]}  Nf5 {[%clk 0:01:37]} 21. Bf3 {[%clk 0:00:42]}  d4 {[%clk 0:01:34]} 22. exd4 {[%clk 0:00:23]}  Bxf3 {[%clk 0:01:28]} 23. gxf3 {[%clk 0:00:12]}  Nxd4 {[%clk 0:01:22]} 24. Qg2 {[%clk 0:00:13]}  Rf6 {[%clk 0:01:15]} 25. Ne4 {[%clk 0:00:13]}  Rg6 {[%clk 0:01:14]} 26. Ng5 {[%clk 0:00:11]}  Bxf4 {[%clk 0:01:13]} 27. h4 {[%clk 0:00:09]}  Bxg5 {[%clk 0:01:14]} 0-1


[Site "https://www.chess.com"]

[Event "Titled Tuesday Blitz February 21 Early 2023"]
[White "Galchenko, Matvey"]
[Black "Rosen, Eric"]
[WhiteFideId "24175480"]
[BlackFideId "2032562"]
[WhiteElo "2438"]
[BlackElo "2349"]
[Result "1-0"]
[Round "08"]
[TimeControl "180+2"]
[Date "2023.02.21"]
[WhiteClock "0:00:02"]
[BlackClock "0:00:01"]

1. f4 {[%clk 0:02:53]}  g6 {[%clk 0:02:55]} 2. Nf3 {[%clk 0:02:53]}  Bg7 {[%clk 0:02:56]} 3. g3 {[%clk 0:02:54]}  c6 {[%clk 0:02:57]} 4. Bg2 {[%clk 0:02:54]}  Nh6 {[%clk 0:02:55]} 5. e4 {[%clk 0:02:52]}  d5 {[%clk 0:02:55]} 6. d3 {[%clk 0:02:52]}  Qb6 {[%clk 0:02:36]} 7. Nc3 {[%clk 0:02:50]}  Bg4 {[%clk 0:02:31]} 8. h3 {[%clk 0:02:44]}  Bxf3 {[%clk 0:02:26]} 9. Qxf3 {[%clk 0:02:45]}  e6 {[%clk 0:02:27]} 10. g4 {[%clk 0:02:42]}  f5 {[%clk 0:01:49]} 11. e5 {[%clk 0:01:54]}  Nd7 {[%clk 0:01:33]} 12. Ne2 {[%clk 0:01:48]}  Rf8 {[%clk 0:01:26]} 13. Qg3 {[%clk 0:01:26]}  fxg4 {[%clk 0:00:53]} 14. hxg4 {[%clk 0:01:26]}  g5 {[%clk 0:00:53]} 15. d4 {[%clk 0:01:08]}  O-O-O {[%clk 0:00:25]} 16. fxg5 {[%clk 0:01:03]}  Nf7 {[%clk 0:00:26]} 17. Rxh7 {[%clk 0:01:02]}  Rg8 {[%clk 0:00:26]} 18. c3 {[%clk 0:00:47]}  Rdf8 {[%clk 0:00:21]} 19. Nf4 {[%clk 0:00:43]}  Nd8 {[%clk 0:00:21]} 20. Nh5 {[%clk 0:00:38]}  Bxe5 {[%clk 0:00:14]} 21. dxe5 {[%clk 0:00:30]}  Qg1+ {[%clk 0:00:15]} 22. Ke2 {[%clk 0:00:30]}  Nxe5 {[%clk 0:00:08]} 23. Nf4 {[%clk 0:00:11]}  Ndf7 {[%clk 0:00:03]} 24. Qh2 {[%clk 0:00:08]}  Qb6 {[%clk 0:00:04]} 25. Nxe6 {[%clk 0:00:06]}  Re8 {[%clk 0:00:03]} 26. Be3 {[%clk 0:00:04]}  Qxb2+ {[%clk 0:00:03]} 27. Bd2 {[%clk 0:00:04]}  Rxe6 {[%clk 0:00:03]} 28. Qh3 {[%clk 0:00:02]}  Qxa1 {[%clk 0:00:03]} 29. g6 {[%clk 0:00:02]}  Nxg6+ {[%clk 0:00:03]} 30. Kf2 {[%clk 0:00:02]}  Nge5 {[%clk 0:00:03]} 31. g5 {[%clk 0:00:03]}  Nxg5 {[%clk 0:00:03]} 32. Bxg5 {[%clk 0:00:03]}  Qb2+ {[%clk 0:00:02]} 33. Kg1 {[%clk 0:00:03]}  Qb1+ {[%clk 0:00:02]} 34. Kh2 {[%clk 0:00:03]}  Qg6 {[%clk 0:00:03]} 35. Bf4 {[%clk 0:00:03]}  Kd8 {[%clk 0:00:01]} 36. Qh4+ {[%clk 0:00:03]}  Ke8 {[%clk 0:00:01]} 37. Qh3 {[%clk 0:00:02]}  Rf8 {[%clk 0:00:01]} 38. Bxe5 {[%clk 0:00:02]} 1-0


[Site "https://www.chess.com"]